bitfinex/quotes_BTCUSD_20241003
["timestamp","ask_amount","ask_price","bid_price","bid_amount"]
[1727939612568,0.027179,61379.0,61378.0,0.67578374]
[1727939612797,0.00164,61379.0,61378.0,0.64778374]
[1727939613019,0.00164,61379.0,61378.0,0.67578374]
[1727939616183,0.00164,61379.0,61378.0,0.64312374]
[1727939616655,0.02717897,61379.0,61378.0,0.64312374]
[1727939617366,0.02717897,61379.0,61378.0,0.29793703]
[1727939617648,0.02717897,61379.0,61378.0,0.164339]
[1727939618099,0.02717897,61379.0,61378.0,0.150339]
[1727939618324,0.02717897,61379.0,61378.0,0.006]
[1727939618537,0.02717897,61379.0,61378.0,0.02]
[1727939618795,0.02817897,61379.0,61378.0,0.162339]
[1727939619014,0.02817897,61379.0,61378.0,0.136339]
[1727939619231,0.02917897,61379.0,61378.0,0.152339]
[1727939619453,0.02717897,61379.0,61378.0,0.144339]
[1727939619887,0.02817897,61379.0,61378.0,0.152339]
[1727939620554,0.02817897,61379.0,61378.0,0.144339]
[1727939620803,0.00264,61379.0,61378.0,0.144339]
[1727939621023,0.00364,61379.0,61378.0,0.28693703]
[1727939621288,0.02918172,61379.0,61378.0,0.28693703]
[1727939622199,0.02718172,61379.0,61378.0,0.26993703]
[1727939622421,0.02818172,61379.0,61378.0,0.27893703]
[1727939622652,0.00364,61379.0,61378.0,0.28893703]
[1727939624921,0.00364,61379.0,61378.0,0.155339]
[1727939625864,0.17604,61379.0,61378.0,0.025]
[1727939626333,0.20158191,61379.0,61378.0,0.025]
[1727939626779,0.20058191,61379.0,61378.0,0.016]
[1727939627001,0.20158191,61379.0,61378.0,0.025]
[1727939627947,0.20058191,61379.0,61378.0,0.015]
[1727939628186,0.20058191,61379.0,61378.0,0.025]
[1727939631199,0.17504,61379.0,61378.0,0.025]
[1727939632388,0.4273472,61379.0,61378.0,0.025]
[1727939632638,0.405377,61379.0,61378.0,0.025]
[1727939632859,0.43092337,61379.0,61378.0,0.025]
[1727939633331,0.42992337,61379.0,61378.0,0.016]
[1727939633588,0.43592337,61379.0,61378.0,0.016]
[1727939634382,0.5695214,61379.0,61378.0,0.006]
[1727939634822,0.5735214,61379.0,61378.0,0.006]
[1727939637951,0.54797503,61379.0,61378.0,0.006]
[1727939638620,0.66980089,61379.0,61378.0,0.006]
[1727939639268,0.66978424,61379.0,61378.0,0.006]
[1727939639922,0.54797503,61379.0,61378.0,0.006]
[1727939641014,0.57352199,61379.0,61378.0,0.006]
[1727939642383,0.69528439,61379.0,61378.0,0.006]
[1727939643116,0.57352199,61379.0,61378.0,0.006]
[1727939643398,0.69527793,61379.0,61378.0,0.006]
[1727939644441,0.66973097,61379.0,61378.0,0.006]
[1727939644677,0.69473097,61379.0,61378.0,0.006]
[1727939645375,0.69273097,61379.0,61378.0,0.006]
[1727939646955,0.57297503,61379.0,61378.0,0.006]
[1727939647238,0.57297503,61379.0,61372.0,0.000819]
[1727939647239,0.002,61375.0,61372.0,0.000819]
[1727939647476,0.38694803,61373.0,61372.0,0.000819]
[1727939647709,0.70976754,61373.0,61372.0,0.000819]
[1727939647935,0.56374803,61373.0,61372.0,0.000819]
[1727939648392,0.70971127,61373.0,61372.0,0.000819]
[1727939648616,0.71771127,61373.0,61372.0,0.002819]
[1727939648839,0.56374803,61373.0,61372.0,0.001819]
[1727939649326,0.70970214,61373.0,61372.0,0.001819]
[1727939649612,0.71770214,61373.0,61372.0,0.002819]
[1727939649867,0.70970214,61373.0,61372.0,0.001819]
[1727939650130,0.70970214,61373.0,61372.0,0.000819]
[1727939650369,0.56374803,61373.0,61372.0,0.000819]
[1727939650606,0.57374803,61373.0,61372.0,0.001819]
[1727939650882,0.70453524,61373.0,61372.0,0.000819]
[1727939651236,0.025,61363.0,61362.0,0.000819]
[1727939651517,0.424173,61362.0,61361.0,0.24461241]
[1727939651766,0.424173,61362.0,61350.0,0.00026]
[1727939651767,0.399192,61353.0,61350.0,0.00026]
[1727939652011,0.47077915,61353.0,61350.0,0.00026]
[1727939652288,0.230395,61352.0,61350.0,0.00026]
[1727939652528,0.253395,61352.0,61350.0,0.00026]
[1727939652786,0.255395,61352.0,61350.0,0.00026]
[1727939653301,0.28095451,61352.0,61350.0,0.00026]
[1727939653789,0.37175451,61352.0,61350.0,0.00026]
[1727939654273,0.346195,61352.0,61350.0,0.00026]
[1727939654555,0.369195,61352.0,61350.0,0.00026]
[1727939656572,0.367195,61352.0,61350.0,0.00026]
[1727939656852,0.344195,61352.0,61350.0,0.00026]
[1727939657345,0.38676637,61352.0,61350.0,0.00026]
[1727939657597,0.37676637,61352.0,61350.0,0.00026]
[1727939657850,0.36376637,61352.0,61350.0,0.00026]
[1727939658095,0.51688841,61352.0,61350.0,0.00026]
[1727939658329,0.59958841,61352.0,61350.0,0.00026]
[1727939658564,0.59158841,61352.0,61350.0,0.00026]
[1727939658787,0.130412,61344.0,61343.0,0.24461241]
[1727939659013,0.130426,61337.0,61336.0,0.20835141]
[1727939659471,0.13043,61336.0,61332.0,0.0755]
[1727939660408,0.27017317,61338.0,61328.0,0.0828]
[1727939660674,0.130429,61336.0,61328.0,0.0828]
[1727939660891,0.130429,61336.0,61330.0,0.13044]
[1727939661144,0.130432,61335.0,61330.0,0.13044]
[1727939661828,0.130436,61333.0,61328.0,0.0828]
[1727939662068,0.13043,61336.0,61329.0,0.130441]
[1727939662326,0.006,61330.0,61329.0,0.130441]
[1727939663006,0.03156194,61330.0,61329.0,0.130441]
[1727939664338,0.03256194,61330.0,61329.0,0.130441]
[1727939665020,0.007,61330.0,61329.0,0.130441]
[1727939665244,0.008,61330.0,61329.0,0.130441]
[1727939665701,0.008,61330.0,61329.0,0.205841]
[1727939667050,0.008,61330.0,61329.0,0.296741]
[1727939667994,0.03256078,61330.0,61329.0,0.296741]
[1727939668228,0.007,61330.0,61329.0,0.296741]
[1727939668471,0.03256078,61330.0,61329.0,0.296741]
[1727939669239,0.007,61330.0,61329.0,0.296741]
[1727939669946,0.008,61330.0,61329.0,0.296741]
[1727939670746,0.008,61330.0,61329.0,0.0754]
[1727939671221,0.006,61330.0,61329.0,0.0754]
[1727939671459,0.007,61330.0,61329.0,0.0754]
[1727939671949,0.03256111,61330.0,61329.0,0.0754]
[1727939672202,0.03356111,61330.0,61329.0,0.0754]
[1727939673914,0.03356111,61330.0,61329.0,0.076219]
[1727939677368,0.03256111,61330.0,61329.0,0.000819]
[1727939677827,0.03356111,61330.0,61329.0,0.000819]
[1727939678289,0.03256111,61330.0,61329.0,0.000819]
[1727939678505,0.006,61330.0,61329.0,0.000819]
[1727939678999,0.007,61330.0,61329.0,0.000819]
[1727939679225,0.006,61330.0,61329.0,0.000819]
[1727939679443,0.007,61330.0,61329.0,0.000819]
[1727939679635,0.008,61330.0,61329.0,0.000819]
[1727939679884,0.008,61330.0,61329.0,0.131262]
[1727939680089,0.008,61330.0,61329.0,0.000819]
[1727939680640,0.007,61330.0,61329.0,0.131262]
[1727939680885,0.03256159,61330.0,61329.0,0.131262]
[1727939681100,0.03356159,61330.0,61329.0,0.131262]
[1727939681321,0.03256159,61330.0,61329.0,0.131262]
[1727939681535,0.03256159,61330.0,61329.0,0.000819]
[1727939681536,0.03156159,61330.0,61329.0,0.000819]
[1727939681791,0.03256159,61330.0,61329.0,0.000819]
[1727939682016,0.03156159,61330.0,61329.0,0.000819]
[1727939682234,0.03256159,61330.0,61329.0,0.000819]
[1727939682946,0.03356159,61330.0,61329.0,0.000819]
[1727939683452,0.03256159,61330.0,61329.0,0.000819]
[1727939683673,0.03256159,61330.0,61329.0,0.303062]
[1727939683891,0.03356159,61330.0,61329.0,0.303062]
[1727939684385,0.03256159,61330.0,61329.0,0.303062]
[1727939684643,0.03156159,61330.0,61329.0,0.303062]
[1727939684885,0.008,61330.0,61329.0,0.303062]
[1727939685097,0.007,61330.0,61329.0,0.303062]
[1727939685542,0.008,61330.0,61329.0,0.303062]
[1727939685767,0.007,61330.0,61329.0,0.303062]
[1727939686015,0.008,61330.0,61329.0,0.303062]
[1727939686719,0.007,61330.0,61329.0,0.303062]
[1727939687142,0.008,61330.0,61329.0,0.303062]
[1727939687589,0.007,61330.0,61329.0,0.303062]
[1727939687810,0.03356036,61330.0,61329.0,0.303062]
[1727939688317,0.008,61330.0,61329.0,0.303062]
[1727939688544,0.008,61330.0,61329.0,0.32280121]
[1727939689251,0.007,61330.0,61329.0,0.32280121]
[1727939689514,0.007,61330.0,61329.0,0.303062]
[1727939689746,0.008,61330.0,61329.0,0.32281164]
[1727939690021,0.007,61330.0,61329.0,0.32281164]
[1727939690251,0.007,61330.0,61329.0,0.303062]
[1727939690472,0.0325585,61330.0,61329.0,0.46904172]
[1727939690693,0.0325585,61330.0,61329.0,0.50312491]
[1727939691145,0.007,61330.0,61329.0,0.50311042]
[1727939691366,0.008,61330.0,61329.0,0.50911042]
[1727939693862,0.008,61330.0,61329.0,0.51111042]
[1727939694082,0.007,61330.0,61329.0,0.64377042]
[1727939694362,0.007,61330.0,61329.0,0.62390871]
[1727939694587,0.03255742,61330.0,61329.0,0.64368502]
[1727939694816,0.008,61330.0,61329.0,0.65498902]
[1727939695036,0.007,61330.0,61329.0,0.6607658]
[1727939695925,0.007,61330.0,61329.0,0.6747658]
[1727939696160,0.006,61330.0,61329.0,0.6607658]
[1727939696410,0.007,61330.0,61329.0,0.6747658]
[1727939696656,0.008,61330.0,61329.0,0.6887658]
[1727939697411,0.007,61330.0,61329.0,0.6747658]
[1727939697655,0.03355699,61330.0,61329.0,0.6887658]
[1727939697904,0.03255699,61330.0,61329.0,0.67474298]
[1727939698149,0.001638,61336.0,61329.0,0.67474298]
[1727939698150,0.001638,61336.0,61334.0,0.1729]
[1727939698393,0.001638,61336.0,61333.0,0.023]
[1727939698394,0.001638,61336.0,61335.0,0.5757633]
[1727939698640,0.02719302,61336.0,61335.0,0.5757633]
[1727939699396,0.02719302,61336.0,61335.0,0.55868297]
[1727939699642,0.02819302,61336.0,61335.0,0.5757633]
[1727939699894,0.02919302,61336.0,61335.0,0.5897633]
[1727939700135,0.02819302,61336.0,61335.0,0.5897633]
[1727939700412,0.0495287,61348.0,61335.0,0.78395001]
[1727939700682,0.0495287,61348.0,61347.0,0.47496303]
[1727939700919,0.0495287,61348.0,61347.0,0.308705]
[1727939701169,0.24461241,61350.0,61349.0,0.126401]
[1727939701423,0.24461241,61350.0,61349.0,0.124401]
[1727939701670,0.34451241,61357.0,61348.0,0.260805]
[1727939701671,0.42151241,61357.0,61348.0,0.260805]
[1727939701921,0.42151241,61357.0,61343.0,0.0751]
[1727939701922,0.42151241,61357.0,61349.0,0.260802]
[1727939702170,0.42151241,61357.0,61353.0,0.130392]
[1727939702669,0.1769,61357.0,61354.0,0.13039]
[1727939703159,0.1779,61357.0,61354.0,0.13039]
[1727939703680,0.1769,61357.0,61354.0,0.13039]
[1727939703947,0.1009,61357.0,61354.0,0.13039]
[1727939704405,0.08009416,61361.0,61354.0,0.130389]
[1727939704669,0.222612,61362.0,61352.0,0.260789]
[1727939704670,0.222612,61362.0,61357.0,0.130383]
[1727939705151,0.222612,61362.0,61352.0,0.342389]
[1727939705152,0.092238,61362.0,61354.0,0.13359803]
[1727939705392,0.092238,61362.0,61361.0,0.130375]
[1727939705393,0.001638,61362.0,61361.0,0.130375]
[1727939705647,0.001638,61362.0,61359.0,0.260757]
[1727939705648,0.02554906,61361.0,61356.0,0.260773]
[1727939705893,0.02554906,61361.0,61358.0,0.130381]
[1727939706935,0.02554906,61361.0,61356.0,0.130385]
[1727939707157,0.02554906,61361.0,61357.0,0.130384]
[1727939707436,0.02554906,61361.0,61354.0,0.260778]
[1727939707437,0.15592506,61361.0,61355.0,0.130387]
[1727939707690,0.15592506,61361.0,61354.0,0.262778]
[1727939707959,0.15592506,61361.0,61356.0,0.130385]
[1727939708676,0.02554906,61361.0,61357.0,0.130383]
[1727939709919,0.02654906,61361.0,61357.0,0.130383]
[1727939710438,0.02554906,61361.0,61357.0,0.130383]
[1727939710699,0.02654906,61361.0,61357.0,0.130383]
[1727939714402,0.001,61361.0,61357.0,0.130383]
[1727939715867,0.131376,61361.0,61354.0,0.260778]
[1727939716100,0.131376,61361.0,61356.0,0.130386]
[1727939716354,0.131376,61361.0,61354.0,0.13039]
[1727939716355,0.001,61361.0,61354.0,0.13039]
[1727939716627,0.260774,61356.0,61349.0,0.000819]
[1727939716935,0.13359803,61359.0,61349.0,0.000819]
[1727939716936,0.130392,61354.0,61349.0,0.000819]
[1727939717165,0.260765,61358.0,61349.0,0.000819]
[1727939717406,0.130393,61353.0,61349.0,0.000819]
[1727939717644,0.130393,61353.0,61349.0,0.131219]
[1727939717913,0.130391,61354.0,61349.0,0.131219]
[1727939718430,0.130389,61355.0,61349.0,0.000819]
[1727939718681,0.130394,61353.0,61349.0,0.000819]
[1727939719188,0.433581,61354.0,61349.0,0.000819]
[1727939719424,0.003,61353.0,61349.0,0.000819]
[1727939719917,0.303191,61354.0,61349.0,0.131218]
[1727939720428,0.003,61353.0,61349.0,0.131218]
[1727939720923,0.303191,61354.0,61349.0,0.131218]
[1727939721897,0.02555343,61353.0,61349.0,0.131218]
[1727939722370,0.02555343,61353.0,61350.0,0.130398]
[1727939722604,0.02555343,61353.0,61349.0,0.000819]
[1727939722820,0.02555343,61353.0,61352.0,0.130395]
[1727939723057,0.02855343,61353.0,61352.0,0.130395]
[1727939723306,0.02855343,61353.0,61352.0,0.208395]
[1727939723537,0.02555343,61353.0,61352.0,0.208395]
[1727939724693,0.001638,61361.0,61359.0,0.130379]
[1727939724909,0.001638,61361.0,61360.0,0.130378]
[1727939726560,0.005638,61361.0,61360.0,0.130378]
[1727939727011,0.001638,61361.0,61360.0,0.130378]
[1727939727465,0.001638,61361.0,61355.0,0.13359803]
[1727939727693,0.001638,61361.0,61359.0,0.13038]
[1727939727919,0.02718838,61361.0,61359.0,0.13038]
[1727939728142,0.02718838,61361.0,61360.0,0.001]
[1727939728584,0.001638,61361.0,61355.0,0.13359803]
[1727939728813,0.001638,61361.0,61355.0,0.13459803]
[1727939729042,0.001638,61361.0,61355.0,0.13359803]
[1727939729508,0.001638,61361.0,61360.0,0.001]
[1727939729978,0.132013,61361.0,61360.0,0.001]
[1727939730440,0.301013,61361.0,61360.0,0.001]
[1727939730671,0.301013,61361.0,61349.0,0.000819]
[1727939730672,0.260764,61358.0,61349.0,0.000819]
[1727939730891,0.170638,61361.0,61360.0,0.001]
[1727939730892,0.21928832,61361.0,61360.0,0.001]
[1727939731115,0.34966332,61361.0,61360.0,0.001]
[1727939731363,0.301013,61361.0,61360.0,0.001]
[1727939731818,0.3265657,61361.0,61360.0,0.001]
[1727939732348,0.130391,61354.0,61349.0,0.000819]
[1727939732570,0.260762,61359.0,61349.0,0.000819]
[1727939732571,0.130393,61353.0,61349.0,0.000819]
[1727939733208,0.15594606,61353.0,61349.0,0.000819]
[1727939733421,0.02555306,61353.0,61349.0,0.000819]
[1727939733640,0.130395,61352.0,61349.0,0.000819]
[1727939735001,0.15594814,61352.0,61349.0,0.003819]
[1727939735433,0.15594814,61352.0,61349.0,0.000819]
[1727939735664,0.15594814,61352.0,61349.0,0.001819]
[1727939735893,0.15594814,61352.0,61349.0,0.003819]
[1727939736357,0.15594814,61352.0,61349.0,0.001819]
[1727939737013,0.15594814,61352.0,61349.0,0.000819]
[1727939737551,0.15694814,61352.0,61349.0,0.000819]
[1727939737817,0.130399,61350.0,61349.0,0.000819]
[1727939738083,0.227399,61350.0,61349.0,0.000819]
[1727939738586,0.27612937,61350.0,61349.0,0.000819]
[1727939738829,0.27612937,61350.0,61349.0,0.001819]
[1727939739069,0.227399,61350.0,61349.0,0.001819]
[1727939739514,0.27612937,61350.0,61349.0,0.001819]
[1727939740234,0.27612937,61350.0,61349.0,0.000819]
[1727939740447,0.27712937,61350.0,61349.0,0.002819]
[1727939740922,0.18012937,61350.0,61349.0,0.000819]
[1727939742140,0.51868568,61350.0,61349.0,0.000819]
[1727939742371,0.299399,61350.0,61349.0,0.000819]
[1727939742653,0.300399,61350.0,61349.0,0.000819]
[1727939743126,0.299399,61350.0,61349.0,0.000819]
[1727939743633,0.300399,61350.0,61349.0,0.000819]
[1727939743882,0.42238231,61350.0,61349.0,0.000819]
[1727939744873,0.42236358,61350.0,61349.0,0.000819]
[1727939745132,0.300399,61350.0,61349.0,0.000819]
[1727939745375,0.299399,61350.0,61349.0,0.000819]
[1727939745632,0.303399,61350.0,61349.0,0.000819]
[1727939746148,0.299399,61350.0,61349.0,0.000819]
[1727939746424,0.400399,61350.0,61349.0,0.000819]
[1727939746900,0.399399,61350.0,61349.0,0.000819]
[1727939747151,0.405399,61350.0,61349.0,0.002819]
[1727939747627,0.54965773,61350.0,61349.0,0.002819]
[1727939748103,0.57521693,61350.0,61349.0,0.002819]
[1727939748577,0.4289582,61350.0,61349.0,0.002819]
[1727939748838,0.55081959,61350.0,61349.0,0.002819]
[1727939749101,0.44894723,61350.0,61349.0,0.002819]
[1727939749343,0.42457562,61350.0,61349.0,0.002819]
[1727939749560,0.42457344,61350.0,61349.0,0.002819]
[1727939750086,0.0295592,61350.0,61349.0,0.002819]
[1727939750787,0.0295592,61350.0,61349.0,0.13322]
[1727939751018,0.0295592,61350.0,61349.0,0.13222]
[1727939751975,0.0295592,61350.0,61349.0,0.14022]
[1727939752210,0.0255592,61350.0,61349.0,0.13122]
[1727939752716,0.0295592,61350.0,61349.0,0.13122]
[1727939752934,0.0255592,61350.0,61349.0,0.13122]
[1727939753415,0.0255592,61350.0,61349.0,0.14122]
[1727939753642,0.0255592,61350.0,61349.0,0.15322]
[1727939754113,0.24461241,61358.0,61356.0,0.130384]
[1727939754793,0.001638,61361.0,61356.0,0.130384]
[1727939756223,0.001638,61361.0,61356.0,0.132384]
[1727939756686,0.001638,61361.0,61356.0,0.130384]
[1727939756910,0.001638,61361.0,61356.0,0.133384]
[1727939757131,0.02555128,61360.0,61357.0,0.130384]
[1727939757597,0.02555128,61360.0,61351.0,0.260791]
[1727939757936,0.02555128,61360.0,61350.0,0.260798]
[1727939758034,0.130385,61357.0,61352.0,0.130393]
[1727939758988,0.26078,61355.0,61349.0,0.000819]
[1727939759220,0.24461241,61356.0,61349.0,0.000819]
[1727939759223,0.130399,61350.0,61349.0,0.000819]
[1727939759927,0.15595393,61350.0,61349.0,0.000819]
[1727939762338,0.15995393,61350.0,61349.0,0.000819]
[1727939762820,0.15595393,61350.0,61349.0,0.000819]
[1727939763082,0.15995393,61350.0,61349.0,0.000819]
[1727939763539,0.15595393,61350.0,61349.0,0.000819]
[1727939763763,0.15995393,61350.0,61349.0,0.000819]
[1727939765032,0.130399,61350.0,61349.0,0.000819]
[1727939765290,0.130399,61350.0,61349.0,0.000889]
[1727939765537,0.134399,61350.0,61349.0,0.000889]
[1727939765797,0.130399,61350.0,61349.0,0.000889]
[1727939766285,0.134399,61350.0,61349.0,0.000889]
[1727939766791,0.3554428,61350.0,61349.0,0.000889]
[1727939767024,0.43255773,61350.0,61349.0,0.000889]
[1727939767288,0.310699,61350.0,61349.0,0.000889]
[1727939768256,0.435699,61350.0,61349.0,0.000889]
[1727939768743,0.431699,61350.0,61349.0,0.000889]
[1727939769226,0.435699,61350.0,61349.0,0.000889]
[1727939769706,0.431699,61350.0,61349.0,0.000889]
[1727939769935,0.58184771,61350.0,61349.0,0.001889]
[1727939770416,0.439699,61350.0,61349.0,0.002889]
[1727939770773,0.435699,61350.0,61349.0,0.001889]
[1727939771009,0.58584771,61350.0,61349.0,0.002889]
[1727939771705,0.439699,61350.0,61349.0,0.002889]
[1727939773356,0.46525881,61350.0,61349.0,0.002889]
[1727939774531,0.40524216,61350.0,61349.0,0.002889]
[1727939774759,0.138399,61350.0,61349.0,0.002889]
[1727939775214,0.134399,61350.0,61349.0,0.001889]
[1727939775449,0.004,61350.0,61349.0,0.001889]
[1727939775685,0.008,61350.0,61349.0,0.001889]
[1727939776411,0.004,61350.0,61349.0,0.21339]
[1727939776904,0.012,61350.0,61349.0,0.21439]
[1727939777361,0.012,61350.0,61349.0,0.001889]
[1727939777614,0.012,61350.0,61349.0,0.000889]
[1727939777615,0.130399,61350.0,61349.0,0.000889]
[1727939777852,0.135399,61350.0,61349.0,0.000889]
[1727939778094,0.133399,61350.0,61349.0,0.000889]
[1727939778337,0.130399,61350.0,61349.0,0.000889]
[1727939778812,0.132399,61350.0,61349.0,0.000889]
[1727939779267,0.130399,61350.0,61349.0,0.000889]
[1727939779519,0.131399,61350.0,61349.0,0.000889]
[1727939780270,0.130399,61350.0,61349.0,0.000889]
[1727939780763,0.18010612,61350.0,61349.0,0.000889]
[1727939781002,0.18310612,61350.0,61349.0,0.000889]
[1727939781486,0.17910612,61350.0,61349.0,0.000889]
[1727939781995,0.18110612,61350.0,61349.0,0.000889]
[1727939782692,0.18211174,61350.0,61349.0,0.000889]
[1727939783416,0.15895638,61350.0,61349.0,0.000889]
[1727939785135,0.02655738,61350.0,61349.0,0.000889]
[1727939785373,0.003,61350.0,61349.0,0.000889]
[1727939785605,0.133399,61350.0,61349.0,0.000889]
[1727939785830,0.130399,61350.0,61349.0,0.000889]
[1727939786098,0.131399,61350.0,61349.0,0.000889]
[1727939786302,0.003,61350.0,61349.0,0.000889]
[1727939786535,0.002,61350.0,61349.0,0.000889]
[1727939786763,0.130396,61352.0,61349.0,0.000889]
[1727939786764,0.130396,61352.0,61349.0,0.002889]
[1727939786992,0.130398,61351.0,61349.0,0.002889]
[1727939787217,0.260785,61354.0,61349.0,0.002889]
[1727939787460,0.130394,61353.0,61349.0,0.002889]
[1727939787697,0.130398,61351.0,61349.0,0.002889]
[1727939787933,0.130398,61351.0,61349.0,0.003889]
[1727939788398,0.130398,61351.0,61349.0,0.002889]
[1727939788658,0.130399,61350.0,61349.0,0.002889]
[1727939788914,0.130399,61350.0,61349.0,0.000889]
[1727939789384,0.15595544,61350.0,61349.0,0.000889]
[1727939790542,0.15595544,61350.0,61349.0,0.002889]
[1727939790775,0.15595544,61350.0,61349.0,0.000889]
[1727939791262,0.15595544,61350.0,61349.0,0.001889]
[1727939791999,0.15595544,61350.0,61349.0,0.000889]
[1727939792246,0.37465347,61350.0,61349.0,0.000889]
[1727939792481,0.37265347,61350.0,61349.0,0.000889]
[1727939792944,0.36865347,61350.0,61349.0,0.000889]
[1727939793183,0.49844628,61350.0,61349.0,0.000889]
[1727939793412,0.49844001,61350.0,61349.0,0.000889]
[1727939793652,0.37665347,61350.0,61349.0,0.000889]
[1727939794450,0.46875347,61350.0,61349.0,0.000889]
[1727939794692,0.59375347,61350.0,61349.0,0.000889]
[1727939794940,0.89375103,61350.0,61349.0,0.000889]
[1727939795170,0.89075103,61350.0,61349.0,0.000889]
[1727939795439,0.89475103,61350.0,61349.0,0.000889]
[1727939795703,1.71817203,61350.0,61349.0,0.000889]
[1727939795978,0.130431,61335.0,61334.0,0.24461241]
[1727939796234,0.22781141,61335.0,61334.0,0.24461241]
[1727939796489,0.130441,61330.0,61329.0,0.000819]
[1727939797468,0.30406537,61330.0,61329.0,0.000819]
[1727939797716,0.2553885,61330.0,61329.0,0.000819]
[1727939797957,0.130441,61330.0,61329.0,0.000819]
[1727939798431,0.25204509,61330.0,61329.0,0.000819]
[1727939798663,0.25804509,61330.0,61329.0,0.000819]
[1727939798955,0.25805462,61330.0,61329.0,0.000819]
[1727939799183,0.27205462,61330.0,61329.0,0.000819]
[1727939799417,0.148441,61330.0,61329.0,0.000819]
[1727939799668,0.23970996,61330.0,61329.0,0.000819]
[1727939800138,0.142441,61330.0,61329.0,0.000819]
[1727939800403,0.21537381,61330.0,61329.0,0.000819]
[1727939800638,0.21737381,61330.0,61329.0,0.000819]
[1727939800885,0.144441,61330.0,61329.0,0.000819]
[1727939801131,0.157441,61330.0,61329.0,0.000819]
[1727939801439,0.23036541,61330.0,61329.0,0.000819]
[1727939802118,0.3932183,61330.0,61329.0,0.000819]
[1727939802363,1.88661516,61330.0,61329.0,0.000819]
[1727939802606,2.1436225,61330.0,61329.0,0.000819]
[1727939802872,1.80264316,61330.0,61329.0,0.000819]
[1727939803135,0.62616182,61330.0,61329.0,0.000819]
[1727939803399,0.45270782,61330.0,61329.0,0.000819]
[1727939803653,0.44070782,61330.0,61329.0,0.000819]
[1727939803889,0.43403212,61330.0,61329.0,0.000819]
[1727939804613,0.32893212,61330.0,61329.0,0.000819]
[1727939804873,0.25193212,61330.0,61329.0,0.000819]
[1727939805106,0.253441,61330.0,61329.0,0.000819]
[1727939805334,0.230441,61330.0,61329.0,0.000819]
[1727939805567,0.240441,61330.0,61329.0,0.000819]
[1727939805810,0.241441,61330.0,61329.0,0.000819]
[1727939806041,0.249441,61330.0,61329.0,0.000819]
[1727939806262,0.238441,61330.0,61329.0,0.000819]
[1727939806836,0.145441,61330.0,61329.0,0.000819]
[1727939808007,0.130441,61330.0,61329.0,0.000819]
[1727939808240,0.138441,61330.0,61329.0,0.000819]
[1727939808963,0.144441,61330.0,61329.0,0.000819]
[1727939809700,0.17000668,61330.0,61329.0,0.000819]
[1727939811415,0.17000668,61330.0,61329.0,0.083719]
[1727939811688,0.17000668,61330.0,61329.0,0.000819]
[1727939815116,0.144441,61330.0,61329.0,0.000819]
[1727939817274,0.014,61330.0,61329.0,0.000819]
[1727939817539,0.014,61330.0,61329.0,0.076619]
[1727939817797,0.014,61330.0,61329.0,0.207062]
[1727939818510,0.006,61330.0,61329.0,0.207062]
[1727939818754,0.002,61330.0,61329.0,0.467945]
[1727939818984,0.003,61330.0,61329.0,0.467945]
[1727939819707,0.02856243,61330.0,61329.0,0.467945]
[1727939819929,0.02756243,61330.0,61329.0,0.467945]
[1727939820154,0.02556243,61330.0,61329.0,0.467945]
[1727939820667,0.02656243,61330.0,61329.0,0.468945]
[1727939820930,0.02556243,61330.0,61329.0,0.467945]
[1727939821184,0.02656243,61330.0,61329.0,0.467945]
[1727939821442,0.02756243,61330.0,61329.0,0.078619]
[1727939821679,0.15800343,61330.0,61329.0,0.002819]
[1727939822421,0.15700343,61330.0,61329.0,0.002819]
[1727939822908,0.15800343,61330.0,61329.0,0.002819]
[1727939823163,0.15800343,61330.0,61329.0,0.000819]
[1727939823164,0.95356643,61330.0,61329.0,0.000819]
[1727939823400,1.21889843,61330.0,61329.0,0.000819]
[1727939823641,1.09511743,61330.0,61329.0,0.001819]
[1727939823878,1.25830414,61330.0,61329.0,0.001819]
[1727939824126,1.25830414,61330.0,61329.0,0.000819]
[1727939824370,1.27430414,61330.0,61329.0,0.000819]
[1727939824685,0.130458,61322.0,61321.0,1.0002]
[1727939824923,0.130458,61322.0,61310.0,0.24543141]
[1727939824924,0.130482,61311.0,61310.0,0.24543141]
[1727939825170,0.36408003,61311.0,61310.0,0.24543141]
[1727939825407,0.130492,61306.0,61296.0,0.24461241]
[1727939825645,0.36409003,61306.0,61296.0,0.24461241]
[1727939826119,0.36409003,61306.0,61290.0,0.0777]
[1727939826362,0.36409003,61306.0,61287.0,0.000819]
[1727939826363,0.78751466,61306.0,61287.0,0.000819]
[1727939826605,0.83606729,61306.0,61287.0,0.000819]
[1727939826849,0.61936766,61306.0,61287.0,0.000819]
[1727939827086,0.44749003,61306.0,61287.0,0.000819]
[1727939827605,0.44749003,61306.0,61305.0,0.0169505]
[1727939827839,0.46149003,61306.0,61305.0,0.0169505]
[1727939828085,0.47549003,61306.0,61305.0,0.0169505]
[1727939828364,0.47306676,61306.0,61305.0,0.0169505]
[1727939828597,0.50106676,61306.0,61305.0,0.0169505]
[1727939828825,0.59538438,61306.0,61305.0,0.0169505]
[1727939829057,0.58138438,61306.0,61305.0,0.0169505]
[1727939829291,0.50106676,61306.0,61305.0,0.0169505]
[1727939829531,0.49906676,61306.0,61305.0,0.0169505]
[1727939829768,0.48506676,61306.0,61305.0,0.0169505]
[1727939830224,0.49906676,61306.0,61305.0,0.0169505]
[1727939830474,0.41766676,61306.0,61305.0,0.0169505]
[1727939832183,0.40366676,61306.0,61305.0,0.0169505]
[1727939832452,0.51272874,61306.0,61305.0,0.0169505]
[1727939832701,0.41766676,61306.0,61305.0,0.0169505]
[1727939832931,0.40366676,61306.0,61305.0,0.0169505]
[1727939833185,0.41766676,61306.0,61305.0,0.0169505]
[1727939833669,0.40366676,61306.0,61305.0,0.0169505]
[1727939834629,0.38966676,61306.0,61305.0,0.0169505]